Workbook

Sheet Palkkalaskuri
B1: Sivistystyönantajat ry:n yksityisen opetusalan palkkalaskuri
B2: Peruskoulu ja lukio 1.7.2025, muut 1.8.2025 lukien
B3: Valitse alla olevasta listasta palkkakoodi, anna kalleusluokka ja kokemuslisiin oikeuttava aika
B4: sekä täytä keltaisella pohjalla kysytyt tiedot.
B16: Valittuna:
B17: =VLOOKUP(Taul1!E1,Taul1!A9:Y69,25,FALSE) -> 011064 Peruskoulun rehtori
B18: Hinnoittelukohdan alaraja: | F18: =Taul1!E3 -> 4484.53
C19: Kokemuslisien prosentit:
C20: 3 v | D20: 5 v | E20: 8 v | F20: 13 v | G20: 15 v | H20: 20 v
C21: =Taul1!K4 -> 0 | D21: =Taul1!L4 -> 0.05 | E21: =Taul1!M4 -> 0.05 | F21: =Taul1!N4 -> 0.09 | G21: =Taul1!O4 -> 0 | H21: =Taul1!P4 -> 0.06
C22: 15 vuoden kokemuslisä käytössä vain eräissä ammatillisissa oppilaitoksissa.
C23: Steinerkouluissa kokemuslisävuodet ovat 5, 7, 10, 15 ja 20
F25: I kalleusluokan kunnat:
F26: Enontekiö, Espoo, Helsinki, Hyrynsalmi,
F27: Hyvinkää, Hämeenlinna, Ii, Inari, Joensuu,
F28: Jyväskylä, Järvenpää, Kauniainen, Kemi,
F29: Kemijärvi, Keminmaa, Kerava, Kirkkonummi,
F30: Kittilä, Kolari, Kuhmo, Kuopio, Kuusamo,
F31: Muonio, Oulu, Pelkosenniemi, Pello, Posio,
F32: Ranua, Ristijärvi, Rovaniemi, Salla, Savukoski,
F33: Simo, Sodankylä, Tampere, Tervola, Tornio,
F34: Utsjoki, Vaasa, Vantaa, ja Ylitornio.
C40: Tehtäväkohtainen lisä (vaikuttaa ylit.palkkioon)
C41: % -lisä peruspalkasta * | H41: =G41*F18 -> 0
C42: Muu lisä (ei vaikuta ylituntipalkkioon)
C43: Ylituntien lukumäärä | F43: =Taul1!X2 -> 
C44: Opetusvelvollisuus | F44: =Taul1!X3 -> 
C48: Tehtäväkohtainen palkka | H48: =F18+H40+H41 -> 4484.53
C49: Vuosidonnainen osa | H49: =Taul1!E6 -> 1227.99
C50: Ylituntipalkkiot | H50: =IF(H44<>"",ROUND($H$48*Taul1!$F$2/(Palkkalaskuri!$H$44-Taul1!G2),2)*H43,"--") -> --
C51: Muut lisät | H51: =H42 -> 0
C52: Yhteensä | H52: =SUM(H48:H51) -> 5712.52
C55: Kertatuntipalkkio | H55: =IF(H44="","--",Taul1!Y4) -> --
B57: *) lisä vaikuttaa tässä laskennassa ylituntipalkkioon (esim. erityisopettajalisä)

Sheet Taul1 (hidden)
D1: Rivinumero | E1: 1 | X1: =VLOOKUP(E1,$A$9:$X$69,22,FALSE) -> 1.201725
D2: Kalleusluokka | E2: 1 | F2: =VLOOKUP(E1,$A$9:$I$69,7+E2,FALSE) -> 1 | G2: =VLOOKUP(E1,$A$9:$J$69,10,FALSE) -> 0 | K2: =1/F2 -> 1 | X2: =IF(Taul1!X1=1,"Valittu hinnoittelukohta ei ole","") -> 
D3: Alaraja | E3: =VLOOKUP(E1,A9:F69,4+E2) -> 4484.53 | X3: =IF(Taul1!X1=1,"ylituntipalkkiojärjestelmässä ","") -> 
D4: Vuosid.lisä | E4: 7 | K4: =VLOOKUP($E$1,$A$9:$P$69,11)/100 -> 0 | L4: =VLOOKUP($E$1,$A$9:$P$69,12)/100 -> 0.05 | M4: =VLOOKUP($E$1,$A$9:$P$69,13)/100 -> 0.05 | N4: =VLOOKUP($E$1,$A$9:$P$69,14)/100 -> 0.09 | O4: =VLOOKUP($E$1,$A$9:$P$69,15)/100 -> 0 | P4: =VLOOKUP($E$1,$A$9:$P$69,16)/100 -> 0.06 | W4: Kertatuntipalkkio: | X4: =ROUND(ROUND(Palkkalaskuri!H48*Taul1!$F$2/(Palkkalaskuri!$H$44-G2),2)*12/G6,2) ->  | Y4: =IF(Taul1!X1=1,"--",Taul1!X4) -> 
D5: Vuosisid.lisän kerroin | E5: =VLOOKUP(E1,A9:W69,16+E4,FALSE) -> 1.2738285
D6: Vuosisi. lisä e | E6: =ROUND(E5*E3-E3,2) -> 1227.99 | G6: =VLOOKUP($E$1,$A$9:$J$69,7) -> 38 | J6: =VLOOKUP($E$1,$A$9:$J$69,8) -> 1
H7: Ylituntikerroin
A8: Index | B8: Liite | C8: Hitu | D8: Nimi | E8: I kl | F8: II kl | G8: Viikot | H8: I | I8: II | J8: Kerroin | K8: 3 v | L8: 5 v | M8: 8 v | N8: 13 v | O8: 15 v | P8: 20 v | Q8: 0 v. | R8: 3v | S8: 5v | T8: 8v | U8: 13v | V8: 15v | W8: 20v | X8: Kok.työaika | Y8: Listanimi | AL8: Tark I/II
A9: 1 | C9: 011064 | D9: Peruskoulun rehtori | E9: 4484.53 | F9: 4361.04 | G9: 38 | H9: 1 | I9: 1 | J9: 0 | L9: 5 | M9: 5 | N9: 9 | P9: 6 | Q9: 1 | R9: =K9/100+1 -> 1 | S9: =R9*(L9/100+1) -> 1.05 | T9: =S9*(M9/100+1) -> 1.1025 | U9: =T9*(N9/100+1) -> 1.201725 | V9: =U9*(O9/100+1) -> 1.201725 | W9: =V9*(P9/100+1) -> 1.2738285 | X9: 1 | Y9: =C9&" "&D9 -> 011064 Peruskoulun rehtori | AL9: =F9/E9 -> 0.9724631121
A10: 2 | C10: 011065 | D10: Lukion rehtori | E10: 4674.57 | F10: 4545.86 | G10: 38 | H10: 1 | I10: 1 | J10: 0 | L10: 5 | M10: 5 | N10: 9 | P10: 6 | Q10: 1 | R10: =K10/100+1 -> 1 | S10: 1.05 | T10: 1.1025 | U10: 1.201725 | V10: 1.201725 | W10: 1.2738285 | X10: 1 | Y10: =C10&" "&D10 -> 011065 Lukion rehtori | AL10: =F10/E10 -> 0.9724659167
A11: 3 | C11: 011261 | D11: Johtaja (8 §) | E11: 3907.49 | F11: 3800.05 | G11: 38 | H11: 1 | I11: 1 | J11: 0 | L11: 5 | M11: 5 | N11: 5 | P11: 6 | Q11: 1 | R11: 1 | S11: 1.05 | T11: 1.1025 | U11: 1.157625 | V11: 1.157625 | W11: 1.2270825 | X11: 1 | Y11: 011261 Johtaja (8 §) | AL11: 0.9725040883
A12: 4 | C12: 011259 | D12: Johtaja (10 §) | E12: 3650.9 | F12: 3550.78 | G12: 38 | H12: 1 | I12: 1 | J12: 0 | L12: 5 | M12: 5 | N12: 5 | P12: 6 | Q12: 1 | R12: 1 | S12: 1.05 | T12: 1.1025 | U12: 1.157625 | V12: 1.157625 | W12: 1.2270825 | X12: 1 | Y12: 011259 Johtaja (10 §) | AL12: 0.9725766249
A13: 5 | C13: 011154 | D13: Apulaisjohtaja (10 §) | E13: 3001.66 | F13: 2919.23 | G13: 38 | H13: 1 | I13: 1 | J13: 0 | L13: 5 | M13: 5 | N13: 5 | P13: 6 | Q13: 1 | R13: 1 | S13: 1.05 | T13: 1.1025 | U13: 1.157625 | V13: 1.157625 | W13: 1.2270825 | X13: 1 | Y13: 011154 Apulaisjohtaja (10 §) | AL13: 0.9725385287
A14: 6 | C14: 012151 | D14: 1. Lehtori ja opinto-ohjaaja(lukio) a. Ylempi korkeakoulututkinto ja lukio-opetusta antavan opettajan kelpoisuus taikka aiempi vanhemman lehtorin kelpoisuus | E14: 3560.14 | F14: 3461.98 | G14: 38 | H14: 0.836 | I14: 0.86 | J14: 0 | L14: 6 | M14: 7 | N14: 8 | P14: 6 | Q14: 1 | R14: 1 | S14: 1.06 | T14: 1.1342 | U14: 1.224936 | V14: 1.224936 | W14: 1.29843216 | X14: 0 | Y14: 012151 1. Lehtori ja opinto-ohjaaja(lukio) a. Ylempi korkeakoulututkinto ja lukio-opetusta antavan opettajan kelpoisuus taikka aiempi vanhemman lehtorin kelpoisuus | AL14: 0.9724280506
A15: 7 | C15: 012150 | D15: 1. Lehtori ja opinto-ohjaaja(lukio) b. Perusopetusta antavan opettajan tai aiempi lukio-opetusta antavan opettajan kelp. | E15: 3422.93 | F15: 3329.06 | G15: 38 | H15: 0.847 | I15: 0.871 | J15: 0 | L15: 6 | M15: 7 | N15: 8 | P15: 6 | Q15: 1 | R15: 1 | S15: 1.06 | T15: 1.1342 | U15: 1.224936 | V15: 1.224936 | W15: 1.29843216 | X15: 0 | Y15: 012150 1. Lehtori ja opinto-ohjaaja(lukio) b. Perusopetusta antavan opettajan tai aiempi lukio-opetusta antavan opettajan kelp. | AL15: 0.9725761263
A16: 8 | C16: 012145 | D16: 1. Lehtori ja opinto-ohjaaja(lukio) c. Ylempi tai alempi korkeakoulututkinto | E16: 2932.23 | F16: 2861.83 | G16: 38 | H16: 0.88 | I16: 0.902 | J16: 0 | L16: 6 | M16: 7 | N16: 8 | P16: 6 | Q16: 1 | R16: 1 | S16: 1.06 | T16: 1.1342 | U16: 1.224936 | V16: 1.224936 | W16: 1.29843216 | X16: 0 | Y16: 012145 1. Lehtori ja opinto-ohjaaja(lukio) c. Ylempi tai alempi korkeakoulututkinto | AL16: 0.9759909693
A17: 9 | C17: 012139 | D17: 1. Lehtori ja opinto-ohjaaja(lukio) d. Muu kuin edellä mainittu | E17: 2491.21 | F17: 2434.92 | G17: 38 | H17: 0.925 | I17: 0.948 | J17: 0 | L17: 6 | M17: 7 | N17: 8 | P17: 6 | Q17: 1 | R17: 1 | S17: 1.06 | T17: 1.1342 | U17: 1.224936 | V17: 1.224936 | W17: 1.29843216 | X17: 0 | Y17: 012139 1. Lehtori ja opinto-ohjaaja(lukio) d. Muu kuin edellä mainittu | AL17: 0.9774045544
A18: 10 | C18: 012249 | D18: 2. Lehtori (peruskoulu) a. Ylempi korkeakoulututkinto ja perus-/lukio-opetusta antavan opettajan kelpoisuus tai aiempi vanhemman lehtorin kelpoisuus | E18: 3316.5 | F18: 3227.6 | G18: 38 | H18: 0.854 | I18: 0.877 | J18: 0 | L18: 6 | M18: 7 | N18: 8 | P18: 6 | Q18: 1 | R18: 1 | S18: 1.06 | T18: 1.1342 | U18: 1.224936 | V18: 1.224936 | W18: 1.29843216 | X18: 0 | Y18: 012249 2. Lehtori (peruskoulu) a. Ylempi korkeakoulututkinto ja perus-/lukio-opetusta antavan opettajan kelpoisuus tai aiempi vanhemman lehtorin kelpoisuus | AK18: =E18*W18 -> 4306.250259 | AL18: 0.9731946329
A19: 11 | C19: 012248 | D19: 2. Lehtori (peruskoulu) b. Perusopetusta antavan opettajan tai aiempi peruskoulun/lukion opettajan kelpoisuus | E19: 3176.22 | F19: 3093.9 | G19: 38 | H19: 0.868 | I19: 0.891 | J19: 0 | L19: 6 | M19: 7 | N19: 8 | P19: 6 | Q19: 1 | R19: 1 | S19: 1.06 | T19: 1.1342 | U19: 1.224936 | V19: 1.224936 | W19: 1.29843216 | X19: 0 | Y19: 012248 2. Lehtori (peruskoulu) b. Perusopetusta antavan opettajan tai aiempi peruskoulun/lukion opettajan kelpoisuus | AL19: 0.9740823998
A20: 12 | C20: 012244 | D20: 2. Lehtori (peruskoulu) c. Ylempi korkeakoulututkinto | E20: 2781.83 | F20: 2715.85 | G20: 38 | H20: 0.909 | I20: 0.93 | J20: 0 | L20: 6 | M20: 7 | N20: 8 | P20: 6 | Q20: 1 | R20: 1 | S20: 1.06 | T20: 1.1342 | U20: 1.224936 | V20: 1.224936 | W20: 1.29843216 | X20: 0 | Y20: 012244 2. Lehtori (peruskoulu) c. Ylempi korkeakoulututkinto | AL20: 0.9762818001
A21: 13 | C21: 012242 | D21: 2. Lehtori (peruskoulu) d. Alempi korkeakoulututkinto | E21: 2652.85 | F21: 2590.05 | G21: 38 | H21: 0.916 | I21: 0.938 | J21: 0 | L21: 6 | M21: 7 | N21: 8 | P21: 6 | Q21: 1 | R21: 1 | S21: 1.06 | T21: 1.1342 | U21: 1.224936 | V21: 1.224936 | W21: 1.29843216 | X21: 0 | Y21: 012242 2. Lehtori (peruskoulu) d. Alempi korkeakoulututkinto | AL21: 0.9763273461
A22: 14 | C22: 012239 | D22: 2. Lehtori (peruskoulu) e. Muu kuin edellä mainittu | E22: 2491.21 | F22: 2434.92 | G22: 38 | H22: 0.925 | I22: 0.948 | J22: 0 | L22: 6 | M22: 7 | N22: 8 | P22: 6 | Q22: 1 | R22: 1 | S22: 1.06 | T22: 1.1342 | U22: 1.224936 | V22: 1.224936 | W22: 1.29843216 | X22: 0 | Y22: 012239 2. Lehtori (peruskoulu) e. Muu kuin edellä mainittu | AL22: 0.9774045544
A23: 15 | C23: 012349/ 012649 | D23: 3. Erityisopettaja ja erityisluokanopettaja a. Ylempi korkeakoulututkinto ja erityisopetusta antavan opettajan kelpoisuus | E23: 3316.5 | F23: 3227.6 | G23: 38 | H23: 0.854 | I23: 0.877 | J23: 0 | L23: 6 | M23: 7 | N23: 8 | P23: 6 | Q23: 1 | R23: 1 | S23: 1.06 | T23: 1.1342 | U23: 1.224936 | V23: 1.224936 | W23: 1.29843216 | X23: 0 | Y23: 012349/ 012649 3. Erityisopettaja ja erityisluokanopettaja a. Ylempi korkeakoulututkinto ja erityisopetusta antavan opettajan kelpoisuus | AL23: 0.9731946329
A24: 16 | C24: 012348/ 012648 | D24: 3. Erityisopettaja ja erityisluokanopettaja b. Alempi korkeakoulututkinto ja erityisopetusta antavan opettajan kelpoisuus | E24: 3176.22 | F24: 3093.9 | G24: 38 | H24: 0.868 | I24: 0.891 | J24: 0 | L24: 6 | M24: 7 | N24: 8 | P24: 6 | Q24: 1 | R24: 1 | S24: 1.06 | T24: 1.1342 | U24: 1.224936 | V24: 1.224936 | W24: 1.29843216 | X24: 0 | Y24: 012348/ 012648 3. Erityisopettaja ja erityisluokanopettaja b. Alempi korkeakoulututkinto ja erityisopetusta antavan opettajan kelpoisuus | AL24: 0.9740823998
A25: 17 | C25: 012347/ 012647 | D25: 3. Erityisopettaja ja erityisluokanopettaja c. Erityisopetusta antavan opettajan kelpoisuus taikka ylempi korkeakoulututkinto ja perus-/lukio-opetusta antavan opettajan kelpoisuus | E25: 3103.82 | F25: 3026.02 | G25: 38 | H25: 0.868 | I25: 0.89 | J25: 0 | L25: 6 | M25: 7 | N25: 8 | P25: 6 | Q25: 1 | R25: 1 | S25: 1.06 | T25: 1.1342 | U25: 1.224936 | V25: 1.224936 | W25: 1.29843216 | X25: 0 | Y25: 012347/ 012647 3. Erityisopettaja ja erityisluokanopettaja c. Erityisopetusta antavan opettajan kelpoisuus taikka ylempi korkeakoulututkinto ja perus-/lukio-opetusta antavan opettajan kelpoisuus | AL25: 0.9749341134
A26: 18 | C26: 012346/ 012646 | D26: 3. Erityisopettaja ja erityisluokanopettaja d. Perus-/lukio-opetusta antavan opettajan kelpoisuus | E26: 2998.43 | F26: 2924.61 | G26: 38 | H26: 0.879 | I26: 0.902 | J26: 0 | L26: 6 | M26: 7 | N26: 8 | P26: 6 | Q26: 1 | R26: 1 | S26: 1.06 | T26: 1.1342 | U26: 1.224936 | V26: 1.224936 | W26: 1.29843216 | X26: 0 | Y26: 012346/ 012646 3. Erityisopettaja ja erityisluokanopettaja d. Perus-/lukio-opetusta antavan opettajan kelpoisuus | AL26: 0.9753804491
A27: 19 | C27: 012344/ 012644 | D27: 3. Erityisopettaja ja erityisluokanopettaja e. Vaikeimmin kehitysvammaisten opettaja, jolla on soveltuva vähintään opistoasteinen tutkinto ja lisäksi 35 opintoviikon erityisopinnot | E27: 2781.83 | F27: 2715.85 | G27: 38 | H27: 0.917 | I27: 0.939 | J27: 0 | L27: 6 | M27: 7 | N27: 8 | P27: 6 | Q27: 1 | R27: =K27/100+1 -> 1 | S27: =R27*(L27/100+1) -> 1.06 | T27: =S27*(M27/100+1) -> 1.1342 | U27: =T27*(N27/100+1) -> 1.224936 | V27: =U27*(O27/100+1) -> 1.224936 | W27: =V27*(P27/100+1) -> 1.29843216 | X27: 0 | Y27: 012344/ 012644 3. Erityisopettaja ja erityisluokanopettaja e. Vaikeimmin kehitysvammaisten opettaja, jolla on soveltuva vähintään opistoasteinen tutkinto ja lisäksi 35 opintoviikon erityisopinnot | AL27: 0.9762818001
A28: 20 | C28: 012341/ 012641 | D28: 3. Erityisopettaja ja erityisluokanopettaja f. Muu kuin edellä mainittu tai vaikeimmin kehitysvammaisten opettaja, jolla on soveltuva vähintään opistoasteinen tutkinto | E28: 2602.11 | F28: 2540.86 | G28: 38 | H28: 0.909 | I28: 0.93 | J28: 0 | L28: 6 | M28: 7 | N28: 8 | P28: 6 | Q28: 1 | R28: 1 | S28: 1.06 | T28: 1.1342 | U28: 1.224936 | V28: 1.224936 | W28: 1.29843216 | X28: 0 | Y28: 012341/ 012641 3. Erityisopettaja ja erityisluokanopettaja f. Muu kuin edellä mainittu tai vaikeimmin kehitysvammaisten opettaja, jolla on soveltuva vähintään opistoasteinen tutkinto | AL28: 0.9764614102
A29: 21 | C29: 012449 | D29: 4. Luokanopettaja a. Ylempi korkeakoulututkinto, aineen opettajan kelpoisuus sekä perus-/lukio-opetusta antavan opettajan kelpoisuus | E29: 3316.5 | F29: 3227.6 | G29: 38 | H29: 0.843 | I29: 0.866 | J29: 0 | L29: 6 | M29: 7 | N29: 8 | P29: 6 | Q29: 1 | R29: 1 | S29: 1.06 | T29: 1.1342 | U29: 1.224936 | V29: 1.224936 | W29: 1.29843216 | X29: 0 | Y29: 012449 4. Luokanopettaja a. Ylempi korkeakoulututkinto, aineen opettajan kelpoisuus sekä perus-/lukio-opetusta antavan opettajan kelpoisuus | AL29: 0.9731946329
A30: 22 | C30: 012448 | D30: 4. Luokanopettaja b. Aineenopettajan kelpoisuus ja perus/lukio-opetusta antavan opettajan kelpoisuus | E30: 3176.22 | F30: 3093.9 | G30: 38 | H30: 0.857 | I30: 0.88 | J30: 0 | L30: 6 | M30: 7 | N30: 8 | P30: 6 | Q30: 1 | R30: 1 | S30: 1.06 | T30: 1.1342 | U30: 1.224936 | V30: 1.224936 | W30: 1.29843216 | X30: 0 | Y30: 012448 4. Luokanopettaja b. Aineenopettajan kelpoisuus ja perus/lukio-opetusta antavan opettajan kelpoisuus | AL30: 0.9740823998
A31: 23 | C31: 012446 | D31: 4. Luokanopettaja c. Perus/lukio-opetusta antavan opettajan kelpoisuus | E31: 2998.43 | F31: 2924.61 | G31: 38 | H31: 0.868 | I31: 0.89 | J31: 0 | L31: 6 | M31: 7 | N31: 8 | P31: 6 | Q31: 1 | R31: 1 | S31: 1.06 | T31: 1.1342 | U31: 1.224936 | V31: 1.224936 | W31: 1.29843216 | X31: 0 | Y31: 012446 4. Luokanopettaja c. Perus/lukio-opetusta antavan opettajan kelpoisuus | AL31: 0.9753804491
A32: 24 | C32: 012435 | D32: 4. Luokanopettaja d. Muu kuin edellä mainittu (35) | E32: 2324.8 | F32: 2273.08 | G32: 38 | H32: 0.93 | I32: 0.953 | J32: 0 | L32: 6 | M32: 7 | N32: 8 | P32: 6 | Q32: 1 | R32: 1 | S32: 1.06 | T32: 1.1342 | U32: 1.224936 | V32: 1.224936 | W32: 1.29843216 | X32: 0 | Y32: 012435 4. Luokanopettaja d. Muu kuin edellä mainittu (35) | AL32: 0.977752925
A33: 25 | C33: 015156/ 015256 | D33: 13 § Opinto-ohjauksen lehtori: Ylempi korkeakoulututkinto ja perus-/lukio-opetusta antavan opettajan kelpoisuus taikka aiempi vanhemman lehtorin kelpoisuus | E33: 3591.76 | F33: 3493.29 | G33: 38 | H33: 1 | I33: 1 | L33: 5 | M33: 5 | N33: 5 | P33: 8 | Q33: 1 | R33: 1 | S33: 1.05 | T33: 1.1025 | U33: 1.157625 | V33: 1.157625 | W33: 1.250235 | X33: 0 | Y33: 015156/ 015256 13 § Opinto-ohjauksen lehtori: Ylempi korkeakoulututkinto ja perus-/lukio-opetusta antavan opettajan kelpoisuus taikka aiempi vanhemman lehtorin kelpoisuus | AL33: 0.9725844711
A34: 26 | C34: 015155/ 015255 | D34: 13 § Opinto-ohjauksen lehtori: Perus-/lukio-opetusta antavan opettajan kelpoisuus | E34: 3488.42 | F34: 3392.58 | G34: 38 | H34: 1 | I34: 1 | L34: 5 | M34: 5 | N34: 5 | P34: 8 | Q34: 1 | R34: 1 | S34: 1.05 | T34: 1.1025 | U34: 1.157625 | V34: 1.157625 | W34: 1.250235 | X34: 0 | Y34: 015155/ 015255 13 § Opinto-ohjauksen lehtori: Perus-/lukio-opetusta antavan opettajan kelpoisuus | AL34: 0.972526244
A35: 27 | C35: 015143/ 015243 | D35: 13 § Opinto-ohjauksen lehtori: Muu kuin edellä mainittu | E35: 2442.28 | F35: 2386.57 | G35: 38 | H35: 1 | I35: 1 | L35: 5 | M35: 5 | N35: 5 | P35: 8 | Q35: 1 | R35: 1 | S35: 1.05 | T35: 1.1025 | U35: 1.157625 | V35: 1.157625 | W35: 1.250235 | X35: 0 | Y35: 015143/ 015243 13 § Opinto-ohjauksen lehtori: Muu kuin edellä mainittu | AL35: 0.9771893477
A36: 28 | C36: 011065 | D36: Aikuislukion ja lukion aikuislinjan rehtori | E36: 4674.57 | F36: 4545.86 | G36: 38 | H36: 1 | I36: 1 | L36: 5 | M36: 5 | N36: 9 | P36: 6 | Q36: 1 | R36: 1 | S36: 1.05 | T36: 1.1025 | U36: 1.201725 | V36: 1.201725 | W36: 1.2738285 | X36: 0 | Y36: 011065 Aikuislukion ja lukion aikuislinjan rehtori | AL36: 0.9724659167
A37: 29 | C37: 012151 | D37: 1. Aikuislukion lehtori a. Ylempi korkeakoulututkinto ja lukio-opetusta antavan opettajan kelpoisuus taikka aiempi vanhemman lehtorin kelpoisuus | E37: 3560.14 | F37: 3461.98 | G37: 33 | H37: 0.836 | I37: 0.86 | J37: 0 | L37: 6 | M37: 7 | N37: 8 | P37: 6 | Q37: 1 | R37: 1 | S37: =R37*(L37/100+1) -> 1.06 | T37: =S37*(M37/100+1) -> 1.1342 | U37: =T37*(N37/100+1) -> 1.224936 | V37: =U37*(O37/100+1) -> 1.224936 | W37: =V37*(P37/100+1) -> 1.29843216 | X37: 0 | Y37: 012151 1. Aikuislukion lehtori a. Ylempi korkeakoulututkinto ja lukio-opetusta antavan opettajan kelpoisuus taikka aiempi vanhemman lehtorin kelpoisuus | AL37: 0.9724280506
A38: 30 | C38: 012150 | D38: 1. Aikuislukion lehtori b. Perusopetusta antavan opettajan tai aiempi lukio-opetusta antavan opettajan kelpoisuus | E38: 3422.93 | F38: 3329.06 | G38: 33 | H38: 0.847 | I38: 0.871 | J38: 0 | L38: 6 | M38: 7 | N38: 8 | P38: 6 | Q38: 1 | R38: 1 | S38: 1.06 | T38: 1.1342 | U38: 1.224936 | V38: 1.224936 | W38: 1.29843216 | X38: 0 | Y38: 012150 1. Aikuislukion lehtori b. Perusopetusta antavan opettajan tai aiempi lukio-opetusta antavan opettajan kelpoisuus | AL38: 0.9725761263
A39: 31 | C39: 012145 | D39: 1. Aikuislukion lehtori c. Ylempi tai alempi korkeakoulututkinto | E39: 2932.23 | F39: 2861.83 | G39: 33 | H39: 0.88 | I39: 0.902 | J39: 0 | L39: 6 | M39: 7 | N39: 8 | P39: 6 | Q39: 1 | R39: 1 | S39: 1.06 | T39: 1.1342 | U39: 1.224936 | V39: 1.224936 | W39: 1.29843216 | X39: 0 | Y39: 012145 1. Aikuislukion lehtori c. Ylempi tai alempi korkeakoulututkinto | AL39: 0.9759909693
A40: 32 | C40: 012139 | D40: 1. Aikuislukion lehtori d. Muu kuin edellä mainittu | E40: 2491.21 | F40: 2434.92 | G40: 33 | H40: 0.925 | I40: 0.948 | J40: 0 | L40: 6 | M40: 7 | N40: 8 | P40: 6 | Q40: 1 | R40: 1 | S40: 1.06 | T40: 1.1342 | U40: 1.224936 | V40: 1.224936 | W40: 1.29843216 | X40: 0 | Y40: 012139 1. Aikuislukion lehtori d. Muu kuin edellä mainittu | AL40: 0.9774045544
A41: 33 | C41: 021060 | D41: Kok. työajassa oleva kansanopiston rehtori | E41: 3749.89 | F41: 3719.95 | G41: 38 | H41: 1 | I41: 1 | J41: 0 | K41: 5 | L41: 5 | M41: 5 | N41: 5 | P41: 6 | Q41: 1 | R41: 1.05 | S41: 1.1025 | T41: 1.157625 | U41: 1.21550625 | V41: 1.21550625 | W41: 1.288436625 | X41: 0 | Y41: 021060 Kok. työajassa oleva kansanopiston rehtori | AL41: 0.9920157658
A42: 34 | C42: 021061 | D42: Kok. työajassa oleva kansanopiston rehtori, jolla on ylempi korkeakoulututkinto tai jolla on rehtori- tai johtajapalvelua vähintään 5 vuotta | E42: 3874.82 | F42: 3844.38 | G42: 38 | H42: 1 | I42: 1 | J42: 0 | K42: 5 | L42: 5 | M42: 5 | N42: 5 | P42: 6 | Q42: 1 | R42: =K42/100+1 -> 1.05 | S42: =R42*(L42/100+1) -> 1.1025 | T42: =S42*(M42/100+1) -> 1.157625 | U42: =T42*(N42/100+1) -> 1.21550625 | V42: =U42*(O42/100+1) -> 1.21550625 | W42: =V42*(P42/100+1) -> 1.288436625 | X42: 0 | Y42: =C42&" "&D42 -> 021061 Kok. työajassa oleva kansanopiston rehtori, jolla on ylempi korkeakoulututkinto tai jolla on rehtori- tai johtajapalvelua vähintään 5 vuotta | AL42: =F42/E42 -> 0.9921441512
A43: 35 | C43: 021060_2 | D43: Kansalais- ja työväenopiston rehtori | E43: 3625.33 | F43: 3525.22 | G43: 38 | H43: 1 | I43: 1 | J43: 0 | K43: 5 | L43: 5 | M43: 5 | N43: 5 | P43: 6 | Q43: 1 | R43: =K43/100+1 -> 1.05 | S43: =R43*(L43/100+1) -> 1.1025 | T43: 1.157625 | U43: 1.21550625 | V43: 1.21550625 | W43: 1.288436625 | X43: 0 | Y43: 021060 Kansalais- ja työväenopiston rehtori | AL43: 0.9723859621
A44: 36 | C44: 021061_2 | D44: Kansalais- ja työväenopiston rehtori, jolla on ylempi korkeakoulututkinto tai jolla on rehtori- tai johtajapalvelua vähintään 5 vuotta | E44: 3746.14 | F44: 3643.12 | G44: 38 | H44: 1 | I44: 1 | J44: 0 | K44: 5 | L44: 5 | M44: 5 | N44: 5 | P44: 6 | Q44: 1 | R44: =K44/100+1 -> 1.05 | S44: 1.1025 | T44: 1.157625 | U44: 1.21550625 | V44: 1.21550625 | W44: 1.288436625 | X44: 0 | Y44: 021061 Kansalais- ja työväenopiston rehtori, jolla on ylempi korkeakoulututkinto tai jolla on rehtori- tai johtajapalvelua vähintään 5 vuotta | AL44: 0.972499693
A45: 37 | C45: 021159 | D45: Kokonaispalkkauksessa oleva kansalais- ja työväenopiston apulaisrehtori | E45: 3589.68 | F45: 3491.24 | G45: 38 | H45: 1 | I45: 1 | J45: 0 | K45: 5 | L45: 5 | M45: 5 | N45: 5 | P45: 6 | Q45: 1 | R45: =K45/100+1 -> 1.05 | S45: 1.1025 | T45: 1.157625 | U45: 1.21550625 | V45: 1.21550625 | W45: 1.288436625 | X45: 0 | Y45: 021159 Kokonaispalkkauksessa oleva kansalais- ja työväenopiston apulaisrehtori | AL45: 0.9725769428
A46: 38 | C46: 022650 | D46: Kansalais- ja työväenopiston opettaja 1) ylempi korkeakoulututkinto | E46: 2861.01 | F46: 2782.56 | G46: 38 | H46: 1 | I46: 1 | J46: 0 | K46: 5 | L46: 6 | M46: 7 | N46: 7 | P46: 6 | Q46: 1 | R46: 1.05 | S46: 1.113 | T46: 1.19091 | U46: 1.2742737 | V46: 1.2742737 | W46: 1.350730122 | X46: 0 | Y46: 022650 Kansalais- ja työväenopiston opettaja 1) ylempi korkeakoulututkinto | AL46: 0.9725796135
A47: 39 | C47: 022645 | D47: Kansalais- ja työväenopiston opettaja 2) toimeen soveltuva alempi korkeakoulututkinto, ammattikorkeakoulututkinto tai opistoasteen tutkinto tai erivapauden nojalla opettajan toimeen kelpoisuuden saanut (45) | E47: 2475.7 | F47: 2416.31 | G47: 38 | H47: 1 | I47: 1 | J47: 0 | K47: 5 | L47: 6 | M47: 7 | N47: 7 | P47: 6 | Q47: 1 | R47: 1.05 | S47: 1.113 | T47: 1.19091 | U47: 1.2742737 | V47: 1.2742737 | W47: 1.350730122 | X47: 0 | Y47: 022645 Kansalais- ja työväenopiston opettaja 2) toimeen soveltuva alempi korkeakoulututkinto, ammattikorkeakoulututkinto tai opistoasteen tutkinto tai erivapauden nojalla opettajan toimeen kelpoisuuden saanut (45) | AL47: 0.9760108252
A48: 40 | C48: 031065 | D48: Urheiluopiston rehtori | E48: 4422.48 | F48: 4300.71 | G48: 38 | H48: 1 | I48: 1 | J48: 0 | K48: 5 | L48: 5 | M48: 5 | N48: 5 | P48: 6 | Q48: 1 | R48: 1.05 | S48: 1.1025 | T48: 1.157625 | U48: 1.21550625 | V48: 1.21550625 | W48: 1.288436625 | X48: 0 | Y48: 031065 Urheiluopiston rehtori | AL48: 0.9724656754
A49: 41 | C49: 031162 | D49: Urheiluopiston apulaisrehtori | E49: 3837.05 | F49: 3731.71 | G49: 38 | H49: 1 | I49: 1 | J49: 0 | K49: 5 | L49: 5 | M49: 5 | N49: 5 | P49: 6 | Q49: 1 | R49: 1.05 | S49: 1.1025 | T49: 1.157625 | U49: 1.21550625 | V49: 1.21550625 | W49: 1.288436625 | X49: 0 | Y49: 031162 Urheiluopiston apulaisrehtori | AL49: 0.9725466178
A50: 42 | C50: 041061 | D50: Musiikkioppilaitoksen rehtori, ylempi korkeakoulututkinto tai ylempi AMK-tutkinto | E50: 4014.51 | F50: 3904.13 | G50: 35 | H50: 1 | I50: 1 | J50: 0 | K50: 5 | L50: 5 | M50: 5 | N50: 5 | Q50: 1 | R50: 1.05 | S50: 1.1025 | T50: 1.157625 | U50: 1.21550625 | V50: 1.21550625 | W50: 1.21550625 | X50: 0 | Y50: 041061 Musiikkioppilaitoksen rehtori, ylempi korkeakoulututkinto tai ylempi AMK-tutkinto | AL50: 0.9725047391
A51: 43 | C51: 041060 | D51: Musiikkioppilaitoksen rehtori, muu tutkinto | E51: 3885.08 | F51: 3777.78 | G51: 35 | H51: 1 | I51: 1 | J51: 0 | K51: 5 | L51: 5 | M51: 5 | N51: 5 | Q51: 1 | R51: 1.05 | S51: 1.1025 | T51: 1.157625 | U51: 1.21550625 | V51: 1.21550625 | W51: 1.21550625 | X51: 0 | Y51: 041060 Musiikkioppilaitoksen rehtori, muu tutkinto | AL51: 0.9723815211
A52: 44 | C52: 041159 | D52: Musiikkioppilaitoksen apulaisrehtori, ylempi korkeakoulututkinto tai ylempi AMK-tutkinto | E52: 3683.82 | F52: 3582.81 | G52: 35 | H52: 1 | I52: 1 | J52: 0 | K52: 5 | L52: 5 | M52: 5 | N52: 5 | Q52: 1 | R52: 1.05 | S52: 1.1025 | T52: 1.157625 | U52: 1.21550625 | V52: 1.21550625 | W52: 1.21550625 | X52: 0 | Y52: 041159 Musiikkioppilaitoksen apulaisrehtori, ylempi korkeakoulututkinto tai ylempi AMK-tutkinto | AL52: 0.9725800935
A53: 45 | C53: 041158 | D53: Musiikkioppilaitoksen apulaisrehtori, muu tutkinto | E53: 3576.8 | F53: 3478.23 | G53: 35 | H53: 1 | I53: 1 | J53: 0 | K53: 5 | L53: 5 | M53: 5 | N53: 5 | Q53: 1 | R53: 1.05 | S53: 1.1025 | T53: 1.157625 | U53: 1.21550625 | V53: 1.21550625 | W53: 1.21550625 | X53: 0 | Y53: 041158 Musiikkioppilaitoksen apulaisrehtori, muu tutkinto | AL53: 0.9724418475
A54: 46 | C54: 043152 | D54: 1. Konservatorio a. Yliopettaja | E54: 3086.25 | F54: 3001.19 | G54: 35 | H54: 1 | I54: 1 | J54: 0 | K54: 5 | L54: 6 | M54: 7 | N54: 8 | P54: 3 | Q54: 1 | R54: 1.05 | S54: 1.113 | T54: 1.19091 | U54: 1.2861828 | V54: 1.2861828 | W54: 1.324768284 | X54: 0 | Y54: 043152 1. Konservatorio a. Yliopettaja | AL54: 0.9724390441
A55: 47 | C55: 043249 | D55: 1. Konservatorio b. Lehtori - ylempi korkeakoulututkinto | E55: 2846 | F55: 2769.7 | G55: 35 | H55: 1 | I55: 1 | J55: 0 | K55: 5 | L55: 6 | M55: 7 | N55: 8 | P55: 3 | Q55: 1 | R55: 1.05 | S55: 1.113 | T55: 1.19091 | U55: 1.2861828 | V55: 1.2861828 | W55: 1.324768284 | X55: 0 | Y55: 043249 1. Konservatorio b. Lehtori - ylempi korkeakoulututkinto | AL55: 0.9731904427
A56: 48 | C56: 043248 | D56: 1. Konservatorio c. Lehtori | E56: 2648.99 | F56: 2580.3 | G56: 35 | H56: 1 | I56: 1 | J56: 0 | K56: 5 | L56: 6 | M56: 7 | N56: 8 | P56: 3 | Q56: 1 | R56: 1.05 | S56: 1.113 | T56: 1.19091 | U56: 1.2861828 | V56: 1.2861828 | W56: 1.324768284 | X56: 0 | Y56: 043248 1. Konservatorio c. Lehtori | AL56: 0.9740693623
A57: 49 | C57: 043346 | D57: 1. Konservatorio d. Yleisaineiden opettajat, ylempi korkeakoulututkinto | E57: 2527.11 | F57: 2464.87 | G57: 35 | H57: 1 | I57: 1 | J57: 0 | K57: 5 | L57: 6 | M57: 7 | N57: 8 | P57: 3 | Q57: 1 | R57: 1.05 | S57: =R57*(L57/100+1) -> 1.113 | T57: =S57*(M57/100+1) -> 1.19091 | U57: =T57*(N57/100+1) -> 1.2861828 | V57: =U57*(O57/100+1) -> 1.2861828 | W57: =V57*(P57/100+1) -> 1.324768284 | X57: 0 | Y57: 043346 1. Konservatorio d. Yleisaineiden opettajat, ylempi korkeakoulututkinto | AL57: 0.9753710761
A58: 50 | C58: 043341 | D58: 1. Konservatorio d. Yleisaineiden opettajat, alempi korkeakoulututkinto | E58: 2289.29 | F58: 2237.31 | G58: 35 | H58: 1 | I58: 1 | J58: 0 | K58: 5 | L58: 6 | M58: 7 | N58: 8 | P58: 3 | Q58: 1 | R58: =K58/100+1 -> 1.05 | S58: 1.113 | T58: 1.19091 | U58: 1.2861828 | V58: 1.2861828 | W58: 1.324768284 | X58: 0 | Y58: 043341 1. Konservatorio d. Yleisaineiden opettajat, alempi korkeakoulututkinto | AL58: 0.9772942703
A59: 51 | C59: 043449 | D59: 2. Musiikin perusopetus a. Ylempi korkeakoulututkinto tai ylempi AMK-tutkinto (49 - 51) | E59: 2846 | F59: 2769.7 | G59: 35 | H59: 1 | I59: 1 | J59: 0 | K59: 5 | L59: 6 | M59: 7 | N59: 8 | P59: 3 | Q59: 1 | R59: 1.05 | S59: 1.113 | T59: 1.19091 | U59: 1.2861828 | V59: 1.2861828 | W59: 1.324768284 | X59: 0 | Y59: 043449 2. Musiikin perusopetus a. Ylempi korkeakoulututkinto tai ylempi AMK-tutkinto (49 - 51) | AL59: =F59/E59 -> 0.9731904427
A60: 52 | C60: 043448 | D60: 2. Musiikin perusopetus b. Soveltuva AMK-tutkinto, konservatorion jatkotutkinto tai entinen lehtorin kelpoisuus (48-50) | E60: 2648.99 | F60: 2580.3 | G60: 35 | H60: 1 | I60: 1 | J60: 0 | K60: 5 | L60: 6 | M60: 7 | N60: 8 | P60: 3 | Q60: 1 | R60: 1.05 | S60: 1.113 | T60: 1.19091 | U60: 1.2861828 | V60: 1.2861828 | W60: 1.324768284 | X60: 0 | Y60: 043448 2. Musiikin perusopetus b. Soveltuva AMK-tutkinto, konservatorion jatkotutkinto tai entinen lehtorin kelpoisuus (48-50) | AL60: 0.9740693623
A61: 53 | C61: 043444 | D61: 2. Musiikin perusopetus c. Muu soveltuva tutkinto | E61: 2421.73 | F61: 2364.66 | G61: 35 | H61: 1 | I61: 1 | J61: 0 | K61: 5 | L61: 6 | M61: 7 | N61: 8 | P61: 3 | Q61: 1 | R61: 1.05 | S61: 1.113 | T61: 1.19091 | U61: 1.2861828 | V61: 1.2861828 | W61: 1.324768284 | X61: 0 | Y61: 043444 2. Musiikin perusopetus c. Muu soveltuva tutkinto | AL61: 0.976434202
A62: 54 | C62: 042543 | D62: Musiikin päätoimiset tuntiopettajat a. Ylempi korkeakoulututkinto | E62: 2430.94 | F62: 2375.47 | G62: 35 | H62: 1 | I62: 1 | J62: 0 | K62: 5 | L62: 6 | M62: 7 | N62: 8 | P62: 3 | Q62: 1 | R62: 1.05 | S62: 1.113 | T62: 1.19091 | U62: 1.2861828 | V62: 1.2861828 | W62: 1.324768284 | X62: 0 | Y62: 042543 Musiikin päätoimiset tuntiopettajat a. Ylempi korkeakoulututkinto | AL62: 0.9771816664
A63: 55 | C63: 042542 | D63: Musiikin päätoimiset tuntiopettajat b. Soveltuva ammattikorkeakoulututkinto, konservatorion jatkotutkinto tai entinen lehtorin kelpoisuus | E63: 2366.68 | F63: 2312.67 | G63: 35 | H63: 1 | I63: 1 | J63: 0 | K63: 5 | L63: 6 | M63: 7 | N63: 8 | P63: 3 | Q63: 1 | R63: 1.05 | S63: 1.113 | T63: 1.19091 | U63: 1.2861828 | V63: 1.2861828 | W63: 1.324768284 | X63: 1 | Y63: 042542 Musiikin päätoimiset tuntiopettajat b. Soveltuva ammattikorkeakoulututkinto, konservatorion jatkotutkinto tai entinen lehtorin kelpoisuus | AL63: 0.9771790018
A64: 56 | C64: 042539 | D64: Musiikin päätoimiset tuntiopettajat c. Muu soveltuva tutkinto | E64: 2248.58 | F64: 2197.89 | G64: 35 | H64: 1 | I64: 1 | J64: 0 | K64: 5 | L64: 6 | M64: 7 | N64: 8 | P64: 3 | Q64: 1 | R64: 1.05 | S64: 1.113 | T64: 1.19091 | U64: 1.2861828 | V64: 1.2861828 | W64: 1.324768284 | X64: 1 | Y64: 042539 Musiikin päätoimiset tuntiopettajat c. Muu soveltuva tutkinto | AL64: 0.9774568839
A65: 57 | C65: 042543 | D65: Musiikin päätoimiset tuntiopettajat d. Yleisaineet, ylempi korkeakoulututkinto | E65: 2430.94 | F65: 2375.47 | G65: 35 | H65: 1 | I65: 1 | J65: 0 | K65: 5 | L65: 6 | M65: 7 | N65: 8 | P65: 3 | Q65: 1 | R65: 1.05 | S65: 1.113 | T65: 1.19091 | U65: 1.2861828 | V65: 1.2861828 | W65: 1.324768284 | X65: 1 | Y65: 042543 Musiikin päätoimiset tuntiopettajat d. Yleisaineet, ylempi korkeakoulututkinto | AL65: 0.9771816664
A66: 58 | C66: 042538 | D66: Musiikin päätoimiset tuntiopettajat d. Yleisaineet , korkeakoulututkinto | E66: 2217.32 | F66: 2167.57 | G66: 35 | H66: 1 | I66: 1 | J66: 0 | K66: 5 | L66: 6 | M66: 7 | N66: 8 | P66: 3 | Q66: 1 | R66: 1.05 | S66: 1.113 | T66: 1.19091 | U66: 1.2861828 | V66: 1.2861828 | W66: 1.324768284 | X66: 1 | Y66: 042538 Musiikin päätoimiset tuntiopettajat d. Yleisaineet , korkeakoulututkinto | AL66: 0.977563004
A67: 59 | C67: 051054 | D67: Kuvataidekoulun sekä monitaiteellisen koulun rehtori | E67: 3007.24 | F67: 2924.69 | G67: 38 | H67: 1 | I67: 1 | J67: 0 | K67: 5 | L67: 5 | M67: 5 | N67: 5 | P67: 6 | Q67: 1 | R67: 1.05 | S67: 1.1025 | T67: 1.157625 | U67: 1.21550625 | V67: 1.21550625 | W67: 1.288436625 | X67: 1 | Y67: 051054 Kuvataidekoulun sekä monitaiteellisen koulun rehtori | AL67: 0.9725495803
A68: 60 | C68: 053442 | D68: Kuvataidekoulun sekä monitaiteellisen koulun 1. Opettaja | E68: 2319.24 | F68: 2266.24 | G68: 38 | H68: 1 | I68: 1 | J68: 0 | K68: 5 | L68: 5 | M68: 5 | N68: 8 | P68: 3 | Q68: 1 | R68: 1.05 | S68: 1.1025 | T68: 1.157625 | U68: 1.250235 | V68: 1.250235 | W68: 1.28774205 | X68: 0 | Y68: 053442 Kuvataidekoulun sekä monitaiteellisen koulun 1. Opettaja | AL68: 0.9771476863
A69: 61 | C69: 053444 | D69: Kuvataidekoulun sekä monitaiteellisen koulun 2. perusopetuksen, kuvataiteen tai musiikin opettajan kelpoisuus, musiikkioppilaitoksen opettajan kelpoisuus tai asetuksen 948/1998 mukainen pedagoginen kelpoisuus | E69: 2411.38 | F69: 2354.2 | G69: 38 | H69: 1 | I69: 1 | J69: 0 | K69: 5 | L69: 5 | M69: 5 | N69: 8 | P69: 3 | Q69: 1 | R69: 1.05 | S69: 1.1025 | T69: 1.157625 | U69: 1.250235 | V69: 1.250235 | W69: 1.28774205 | X69: 0 | Y69: 053444 Kuvataidekoulun sekä monitaiteellisen koulun 2. perusopetuksen, kuvataiteen tai musiikin opettajan kelpoisuus, musiikkioppilaitoksen opettajan kelpoisuus tai asetuksen 948/1998 mukainen pedagoginen kelpoisuus | AL69: 0.9762874371

Sheet Amm. vuosityöaika
B1: Sivistan vuosityöaikasopimuksen palkkalaskuri
B2: 1.8.2025 lukien
B3: Valitse hinnoittelukohta, kalleusluokka ja kokemuslisiin oikeuttava aika.
C7: Hinnoittelukohdan alaraja: | F7: =AmmVTALask!D3 -> 3530.63
C8: Kokemuslisien prosentit
C9: 3 v | D9: 5 v | E9: 8 v | F9: 13 v | G9: 15 v | H9: 20 v
C10: =AmmVTALask!F4 -> 0.05 | D10: =AmmVTALask!G4 -> 0.04 | E10: =AmmVTALask!H4 -> 0.04 | F10: =AmmVTALask!I4 -> 0.05 | G10: =AmmVTALask!J4 -> 0.05 | H10: =AmmVTALask!K4 -> 0.05
F12: I kalleusluokan kunnat:
F13: Enontekiö, Espoo, Helsinki, Hyrynsalmi,
F14: Hyvinkää, Hämeenlinna, Ii, Inari, Joensuu,
F15: Jyväskylä, Järvenpää, Kauniainen, Kemi,
F16: Kemijärvi, Keminmaa, Kerava, Kirkkonummi,
F17: Kittilä, Kolari, Kuhmo, Kuopio, Kuusamo,
F18: Muonio, Oulu, Pelkosenniemi, Pello, Posio,
F19: Ranua, Ristijärvi, Rovaniemi, Salla, Savukoski,
F20: Simo, Sodankylä, Tampere, Tervola, Tornio,
F21: Utsjoki, Vaasa, Vantaa ja Ylitornio.
C30: Vuosityöaika | H30: 1500
C31: Euromääräiset lisät
C32: Prosenttiperusteiset lisät
C36: Peruspalkka | H36: =F7*MIN(H30/1500,1)+H31+(H32*F7) -> 3530.63
C37: Kokemuslisä | H37: =IF(H30<1500,H30/1500*AmmVTALask!E6,AmmVTALask!E6) -> 1111.06
C38: Työajan ylityskorvaus alle 1700 h | H38: =MAX(MIN(H30-1500,200)*(H36+H37)/125/12,0) -> 0
C39: Työajan ylityskorvaus yli 1700 h | H39: =MAX(H30-1700,0)*(H36+H37)/125*1.5/12 -> 0
C40: Yhteensä | H40: =SUM(H36:H39) -> 4641.69

Sheet Kansanopistot (vuosityöaika)
A1: VUOSITYÖAJASSA OLEVAT KANSANOPISTOT
A3: Apulaisrehtorit (14 §)
A4: 021159 | B4: Apulaisrehtorina/vararehtorina toimivan opettajan peruspalkka on | C4: I ja II kalleusluokka
B5: alkupalkka | C5: 3581.27
B6: 3 vuoden jälkeen | C6: 3796.51
B7: 5 vuoden jälkeen | C7: 3986.32
B8: 7 vuoden jälkeen | C8: 4185.65
B9: 10 vuoden jälkeen | C9: 4394.92
B10: 15 vuoden jälkeen | C10: 4658.61
A12: Opettajat (17 §)
A13: 022657 | B13: 1) ylempi korkeakoulututkinto ja ylempi AMK-tutkinto | C13: I ja II kalleusluokka
B14: alkupalkka | C14: 3372.16
B15: 3 vuoden jälkeen | C15: 3574.79
B16: 5 vuoden jälkeen | C16: 3753.56
B17: 7 vuoden jälkeen | C17: 3941.23
B18: 10 vuoden jälkeen | C18: 4138.29
B19: 15 vuoden jälkeen | C19: 4386.62
A21: 022656 | B21: 2) korkeakoulututkinto tai vastaava opettaja | C21: I ja II kalleusluokka
B22: alkupalkka | C22: 3295.03
B23: 3 vuoden jälkeen | C23: 3493.06
B24: 5 vuoden jälkeen | C24: 3667.72
B25: 7 vuoden jälkeen | C25: 3851.13
B26: 10 vuoden jälkeen | C26: 4043.67
B27: 15 vuoden jälkeen | C27: 4286.29
A29: 022653 | B29: 3) muu tutkinto | C29: I ja II kalleusluokka
B30: alkupalkka | C30: 2866.76
B31: 3 vuoden jälkeen | C31: 3039.03
B32: 5 vuoden jälkeen | C32: 3190.97
B33: 7 vuoden jälkeen | C33: 3350.51
B34: 10 vuoden jälkeen | C34: 3518.05
B35: 15 vuoden jälkeen | C35: 3729.12

Sheet Urheiluopistot
A1: URHEILUOPISTOT
A4: 1a. Opettaja (liikunta-aineet ja muut aineet) (7 §)
A5: 032757/ 032857 | B5: a. Ylempi korkeakoulututkinto tai ylempi AMK-tutkinto | C5: I kalleusluokka | F5: II kalleusluokka
B6: alkupalkka | C6: 3762.97 | D6: - | E6: 4132.97 | F6: 3658.97 | G6: - | H6: 4019.4
B7: 3 vuoden jälkeen | C7: 3987.74 | D7: - | E7: 4379.96 | F7: 3877.5 | G7: - | H7: 4259.58
B8: 5 vuoden jälkeen | C8: 4185.97 | D8: - | E8: 4597.81 | F8: 4070.23 | G8: - | H8: 4471.42
B9: 8 vuoden jälkeen | C9: 4394.14 | D9: - | E9: 4826.57 | F9: 4272.6 | G9: - | H9: 4693.86
B10: 13 vuoden jälkeen | C10: 4656.41 | D10: - | E10: 5114.82 | F10: 4527.58 | G10: - | H10: 4974.1
B11: 20 vuoden jälkeen | C11: 4887.64 | D11: - | E11: 5368.91 | F11: 4752.4 | G11: - | H11: 5221.21
A12: 032755/ 032855 | B12: b. Korkeakoulututkinto | C12: I kalleusluokka | F12: II kalleusluokka
B13: alkupalkka | C13: 3591.33 | D13: - | E13: 3875.73 | F13: 3493.3 | G13: - | H13: 3769.52
B14: 3 vuoden jälkeen | C14: 3805.78 | D14: - | E14: 4107.26 | F14: 3701.88 | G14: - | H14: 3994.69
B15: 5 vuoden jälkeen | C15: 3994.92 | D15: - | E15: 4311.49 | F15: 3885.83 | G15: - | H15: 4193.28
B16: 8 vuoden jälkeen | C16: 4193.52 | D16: - | E16: 4525.92 | F16: 4078.98 | G16: - | H16: 4401.83
B17: 13 vuoden jälkeen | C17: 4443.76 | D17: - | E17: 4796.13 | F17: 4322.35 | G17: - | H17: 4664.55
B18: 20 vuoden jälkeen | C18: 4664.38 | D18: - | E18: 5034.33 | F18: 4536.9 | G18: - | H18: 4896.18
A19: 032751/ 032851 | B19: c. Muu tutkinto | C19: I kalleusluokka | F19: II kalleusluokka
B20: alkupalkka | C20: 3036.56 | D20: - | E20: 3285.28 | F20: 2953.48 | G20: - | H20: 3195.73
B21: 3 vuoden jälkeen | C21: 3217.67 | D21: - | E21: 3481.34 | F21: 3129.62 | G21: - | H21: 3386.42
B22: 5 vuoden jälkeen | C22: 3377.43 | D22: - | E22: 3654.29 | F22: 3284.92 | G22: - | H22: 3554.6
B23: 8 vuoden jälkeen | C23: 3545.14 | D23: - | E23: 3835.86 | F23: 3448.04 | G23: - | H23: 3731.19
B24: 13 vuoden jälkeen | C24: 3756.5 | D24: - | E24: 4064.63 | F24: 3653.58 | G24: - | H24: 3953.68
B25: 20 vuoden jälkeen | C25: 3942.8 | D25: - | E25: 4266.34 | F25: 3834.74 | G25: - | H25: 4149.86
A27: 1b. Opettaja (liikunta-aineet ja muut aineet) / Pajulahti ja Vierumäki
A28: 032758/ 032858 | B28: a. Ylempi korkeakoulututkinto tai ylempi AMK-tutkinto | C28: I kalleusluokka | F28: II kalleusluokka
B29: alkupalkka | C29: 3875.73 | D29: - | E29: 4198.9 | F29: 3769.52 | G29: - | H29: 4084.07
B30: 3 vuoden jälkeen | C30: 4107.26 | D30: - | E30: 4449.86 | F30: 3994.69 | G30: - | H30: 4328.15
B31: 5 vuoden jälkeen | C31: 4311.49 | D31: - | E31: 4671.18 | F31: 4193.28 | G31: - | H31: 4543.39
B32: 8 vuoden jälkeen | C32: 4525.92 | D32: - | E32: 4903.62 | F32: 4401.83 | G32: - | H32: 4769.44
B33: 13 vuoden jälkeen | C33: 4796.13 | D33: - | E33: 5196.44 | F33: 4664.55 | G33: - | H33: 5054.23
B34: 20 vuoden jälkeen | C34: 5034.33 | D34: - | E34: 5454.65 | F34: 4896.18 | G34: - | H34: 5305.3
A35: 032756/ 032856 | B35: b. Korkeakoulututkinto | C35: I kalleusluokka | F35: II kalleusluokka
B36: alkupalkka | C36: 3673.84 | D36: - | E36: 3990.99 | F36: 3573.77 | G36: - | H36: 3882.16
B37: 3 vuoden jälkeen | C37: 3893.27 | D37: - | E37: 4229.45 | F37: 3787.17 | G37: - | H37: 4114.11
B38: 5 vuoden jälkeen | C38: 4086.78 | D38: - | E38: 4439.81 | F38: 3975.38 | G38: - | H38: 4318.66
B39: 8 vuoden jälkeen | C39: 4289.98 | D39: - | E39: 4660.64 | F39: 4173 | G39: - | H39: 4533.45
B40: 13 vuoden jälkeen | C40: 4546.01 | D40: - | E40: 4938.9 | F40: 4422 | G40: - | H40: 4804.09
B41: 20 vuoden jälkeen | C41: 4771.73 | D41: - | E41: 5184.25 | F41: 4641.54 | G41: - | H41: 5042.69
A42: 032752/ 032852 | B42: c. Muu tutkinto | C42: I kalleusluokka | F42: II kalleusluokka
B43: alkupalkka | C43: 3112.92 | D43: - | E43: 3591.33 | F43: 3027.78 | G43: - | H43: 3493.3
B44: 3 vuoden jälkeen | C44: 3298.63 | D44: - | E44: 3805.78 | F44: 3208.38 | G44: - | H44: 3701.88
B45: 5 vuoden jälkeen | C45: 3462.44 | D45: - | E45: 3994.92 | F45: 3367.63 | G45: - | H45: 3885.83
B46: 8 vuoden jälkeen | C46: 3634.39 | D46: - | E46: 4193.52 | F46: 3534.88 | G46: - | H46: 4078.98
B47: 13 vuoden jälkeen | C47: 3851.08 | D47: - | E47: 4443.76 | F47: 3745.62 | G47: - | H47: 4322.35
B48: 20 vuoden jälkeen | C48: 4042.11 | D48: - | E48: 4664.38 | F48: 3931.39 | G48: - | H48: 4536.9

Sheet AmmVTALask (hidden)
C1: Rivinumero | E1: 1 | F1: 0.83
C2: Kalleusluokka | E2: 2 | F2: =1/F1 -> 1.204819277
C3: Alaraja | D3: =VLOOKUP(E1,$A$9:$E$12,3+E2) -> 3530.63
C4: TKP | D4: 3274.02 | E4: 7 | F4: =VLOOKUP($E$1,$A$9:$K$12,6)/100 -> 0.05 | G4: =VLOOKUP($E$1,$A$9:$K$12,7)/100 -> 0.04 | H4: =VLOOKUP($E$1,$A$9:$K$12,8)/100 -> 0.04 | I4: =VLOOKUP($E$1,$A$9:$K$12,9)/100 -> 0.05 | J4: =VLOOKUP($E$1,$A$9:$K$12,10)/100 -> 0.05 | K4: =VLOOKUP($E$1,$A$9:$K$12,11)/100 -> 0.05
C5: Tp | D5: =D4/125 -> 26.19216 | E5: =VLOOKUP(E1,A9:R12,11+E4,FALSE) -> 1.31469156
C6: Vuosisi. lisä e | E6: =ROUND(E5*D3-D3,2) -> 1111.06
A8: Index | B8: Hitu | C8: Nimi | F8: 3v | G8: 5v | H8: 8v | I8: 13v | J8: 15v | K8: 20v | L8: 0 v. | M8: 5v | N8: 8v | O8: 10v | P8: 13v | Q8: 15v | R8: 20v | S8: Listanimi
A9: 1 | B9: 068758 / 068858 | C9: Soveltuva ylempi korkeakoulututkinto tai ylempi AMK-tutkinto | D9: 3621.16 | E9: 3530.63 | F9: 5 | G9: 4 | H9: 4 | I9: 5 | J9: 5 | K9: 5 | L9: 1 | M9: =F9/100+1 -> 1.05 | N9: =M9*(G9/100+1) -> 1.092 | O9: =N9*(H9/100+1) -> 1.13568 | P9: 1.192464 | Q9: 1.2520872 | R9: 1.31469156 | S9: =B9&" "&C9 -> 068758 / 068858 Soveltuva ylempi korkeakoulututkinto tai ylempi AMK-tutkinto
A10: 2 | B10: 068756 / 068856 | C10: Soveltuva muu korkeakoulukoulututkinto, insinööri, rakennusarkkitehti | D10: 3286.62 | E10: 3204.43 | F10: 5 | G10: 4 | H10: 4 | I10: 5 | J10: 5 | K10: 5 | L10: 1 | M10: 1.05 | N10: =M10*(G10/100+1) -> 1.092 | O10: 1.13568 | P10: 1.192464 | Q10: 1.2520872 | R10: 1.31469156 | S10: =B10&" "&C10 -> 068756 / 068856 Soveltuva muu korkeakoulukoulututkinto, insinööri, rakennusarkkitehti
A11: 3 | B11: 068754 / 068854 | C11: Soveltuva opistoasteen tutkinto | D11: 2979.28 | E11: 2904.8 | F11: 5 | G11: 4 | H11: 4 | I11: 5 | J11: 5 | K11: 5 | L11: 1 | M11: 1.05 | N11: 1.092 | O11: 1.13568 | P11: 1.192464 | Q11: 1.2520872 | R11: 1.31469156 | S11: =B11&" "&C11 -> 068754 / 068854 Soveltuva opistoasteen tutkinto
A12: 4 | B12: 068752 / 068852 | C12: Soveltuva muu tutkinto tai koulutus | D12: 2638.86 | E12: 2572.88 | F12: 5 | G12: 4 | H12: 4 | I12: 5 | J12: 5 | K12: 5 | L12: 1 | M12: 1.05 | N12: 1.092 | O12: 1.13568 | P12: 1.192464 | Q12: 1.2520872 | R12: 1.31469156 | S12: =B12&" "&C12 -> 068752 / 068852 Soveltuva muu tutkinto tai koulutus
